[Event "Titled Tuesday Blitz December 20 Late 2022"]
[White "Sjugirov, Sanan"]
[Black "Carlsen, Magnus"]
[WhiteFideId "4189302"]
[BlackFideId "1503014"]
[WhiteElo "2613"]
[BlackElo "2830"]
[Result "0-1"]
[Round "06"]
[TimeControl "180+1"]
[Date "2022.12.20"]
[WhiteClock "0:00:05"]
[BlackClock "0:01:14"]

1. d4 {[%clk 0:03:00]}  d5 {[%clk 0:02:59]} 2. c4 {[%clk 0:03:00]}  e6 {[%clk 0:02:59]} 3. Nf3 {[%clk 0:02:58]}  Nf6 {[%clk 0:02:58]} 4. Nc3 {[%clk 0:02:58]}  c5 {[%clk 0:02:57]} 5. e3 {[%clk 0:02:57]}  a6 {[%clk 0:02:56]} 6. cxd5 {[%clk 0:02:57]}  exd5 {[%clk 0:02:57]} 7. Bd3 {[%clk 0:02:57]}  c4 {[%clk 0:02:42]} 8. Bc2 {[%clk 0:02:56]}  Bb4 {[%clk 0:02:43]} 9. O-O {[%clk 0:02:54]}  O-O {[%clk 0:02:43]} 10. Ne5 {[%clk 0:02:49]}  Nc6 {[%clk 0:02:42]} 11. f4 {[%clk 0:02:48]}  Re8 {[%clk 0:02:39]} 12. Qf3 {[%clk 0:02:40]}  Ne7 {[%clk 0:02:36]} 13. g4 {[%clk 0:02:37]}  Bxc3 {[%clk 0:02:36]} 14. bxc3 {[%clk 0:02:37]}  Ne4 {[%clk 0:02:36]} 15. Bxe4 {[%clk 0:02:17]}  dxe4 {[%clk 0:02:35]} 16. Qg2 {[%clk 0:02:17]}  Nd5 {[%clk 0:02:31]} 17. Bd2 {[%clk 0:02:01]}  b5 {[%clk 0:02:27]} 18. g5 {[%clk 0:01:55]}  Bf5 {[%clk 0:02:26]} 19. h4 {[%clk 0:01:51]}  b4 {[%clk 0:02:12]} 20. cxb4 {[%clk 0:01:27]}  c3 {[%clk 0:02:13]} 21. Bc1 {[%clk 0:01:27]}  Nxb4 {[%clk 0:02:13]} 22. Rb1 {[%clk 0:01:26]}  Nd3 {[%clk 0:02:05]} 23. Rb3 {[%clk 0:01:09]}  Rc8 {[%clk 0:02:04]} 24. Qc2 {[%clk 0:01:09]}  Qa5 {[%clk 0:01:53]} 25. Ba3 {[%clk 0:01:07]}  Be6 {[%clk 0:01:49]} 26. Rfb1 {[%clk 0:00:53]}  Bxb3 {[%clk 0:01:47]} 27. Rxb3 {[%clk 0:00:54]}  Ne1 {[%clk 0:01:44]} 28. Qxe4 {[%clk 0:00:45]}  Qxa3 {[%clk 0:01:17]} 29. Rxa3 {[%clk 0:00:27]}  c2 {[%clk 0:01:17]} 30. Rc3 {[%clk 0:00:07]}  Rxc3 {[%clk 0:01:14]} 31. Qd5 {[%clk 0:00:05]}  Nf3+ {[%clk 0:01:14]} 0-1


[Site "https://www.chess.com"]

[Event "Titled Tuesday Blitz December 20 Late 2022"]
[White "Sokolovsky, Yahli"]
[Black "Battlecruiser_Operational"]
[WhiteFideId "2820242"]
[WhiteElo "2316"]
[BlackElo "2431"]
[Result "1-0"]
[Round "06"]
[TimeControl "180+1"]
[Date "2022.12.21"]
[WhiteClock "0:00:52"]
[BlackClock "0:00:02"]

1. b3 {[%clk 0:03:00]}  d5 {[%clk 0:02:58]} 2. Bb2 {[%clk 0:03:01]}  Nf6 {[%clk 0:02:58]} 3. e3 {[%clk 0:03:01]}  Bf5 {[%clk 0:02:54]} 4. Nf3 {[%clk 0:02:59]}  e6 {[%clk 0:02:52]} 5. Nh4 {[%clk 0:02:46]}  Bg4 {[%clk 0:02:48]} 6. Be2 {[%clk 0:02:44]}  Bxe2 {[%clk 0:02:48]} 7. Qxe2 {[%clk 0:02:44]}  Nbd7 {[%clk 0:02:47]} 8. d4 {[%clk 0:02:44]}  Ne4 {[%clk 0:02:39]} 9. Nf3 {[%clk 0:02:44]}  Bd6 {[%clk 0:02:35]} 10. Nbd2 {[%clk 0:02:41]}  f5 {[%clk 0:02:34]} 11. O-O {[%clk 0:02:40]}  O-O {[%clk 0:02:34]} 12. Ne5 {[%clk 0:02:40]}  Bxe5 {[%clk 0:02:25]} 13. dxe5 {[%clk 0:02:39]}  Nxd2 {[%clk 0:02:22]} 14. Qxd2 {[%clk 0:02:40]}  a5 {[%clk 0:02:09]} 15. c4 {[%clk 0:02:38]}  c6 {[%clk 0:02:08]} 16. Ba3 {[%clk 0:02:30]}  Rf7 {[%clk 0:02:06]} 17. Bd6 {[%clk 0:02:31]}  dxc4 {[%clk 0:01:53]} 18. Rfd1 {[%clk 0:02:14]}  cxb3 {[%clk 0:01:48]} 19. axb3 {[%clk 0:02:15]}  Qb6 {[%clk 0:01:32]} 20. Bb4 {[%clk 0:01:50]}  Nxe5 {[%clk 0:01:12]} 21. Bxa5 {[%clk 0:01:50]}  Qxb3 {[%clk 0:01:04]} 22. Bc3 {[%clk 0:01:49]}  Rxa1 {[%clk 0:00:56]} 23. Rxa1 {[%clk 0:01:49]}  Ng6 {[%clk 0:00:44]} 24. h4 {[%clk 0:01:45]}  Qd5 {[%clk 0:00:38]} 25. Qb2 {[%clk 0:01:44]}  Nxh4 {[%clk 0:00:33]} 26. Ra8+ {[%clk 0:01:38]}  Rf8 {[%clk 0:00:33]} 27. Rxf8+ {[%clk 0:01:39]}  Kxf8 {[%clk 0:00:34]} 28. Bxg7+ {[%clk 0:01:40]}  Ke8 {[%clk 0:00:33]} 29. f3 {[%clk 0:01:38]}  b5 {[%clk 0:00:25]} 30. Qa3 {[%clk 0:01:28]}  Ng6 {[%clk 0:00:22]} 31. Bd4 {[%clk 0:01:26]}  Qd7 {[%clk 0:00:19]} 32. Qa8+ {[%clk 0:01:25]}  Kf7 {[%clk 0:00:19]} 33. Bc5 {[%clk 0:01:20]}  e5 {[%clk 0:00:18]} 34. Kh2 {[%clk 0:01:10]}  Kg7 {[%clk 0:00:15]} 35. Qb8 {[%clk 0:01:06]}  Qd5 {[%clk 0:00:13]} 36. Qa7+ {[%clk 0:01:02]}  Kh6 {[%clk 0:00:12]} 37. Qa3 {[%clk 0:01:03]}  e4 {[%clk 0:00:09]} 38. f4 {[%clk 0:01:01]}  Kg7 {[%clk 0:00:08]} 39. Bd4+ {[%clk 0:01:01]}  Kh6 {[%clk 0:00:08]} 40. Qa7 {[%clk 0:00:56]}  Qg8 {[%clk 0:00:02]} 41. Bf6 {[%clk 0:00:52]} 1-0


[Site "https://www.chess.com"]

[Event "Titled Tuesday Blitz December 20 Late 2022"]
[White "Szyszylo, Rafal"]
[Black "Broca Jimenez, Fernando"]
[WhiteFideId "1109626"]
[BlackFideId "5104742"]
[WhiteElo "1981"]
[BlackElo "2062"]
[Result "0-1"]
[Round "06"]
[TimeControl "180+1"]
[Date "2022.12.21"]
[WhiteClock "0:00:13"]
[BlackClock "0:00:21"]

1. e4 {[%clk 0:02:40]}  c5 {[%clk 0:02:57]} 2. Nf3 {[%clk 0:02:38]}  g6 {[%clk 0:02:57]} 3. c3 {[%clk 0:02:35]}  Bg7 {[%clk 0:02:55]} 4. d4 {[%clk 0:02:36]}  cxd4 {[%clk 0:02:56]} 5. cxd4 {[%clk 0:02:36]}  d5 {[%clk 0:02:57]} 6. e5 {[%clk 0:02:36]}  Bg4 {[%clk 0:02:57]} 7. Nbd2 {[%clk 0:02:35]}  Nc6 {[%clk 0:02:55]} 8. h3 {[%clk 0:02:35]}  Bxf3 {[%clk 0:02:53]} 9. Nxf3 {[%clk 0:02:36]}  e6 {[%clk 0:02:54]} 10. Bg5 {[%clk 0:02:32]}  Qb6 {[%clk 0:02:50]} 11. Qd2 {[%clk 0:02:32]}  h6 {[%clk 0:02:49]} 12. Be3 {[%clk 0:02:31]}  Nge7 {[%clk 0:02:48]} 13. g4 {[%clk 0:02:31]}  g5 {[%clk 0:02:42]} 14. Bd3 {[%clk 0:02:30]}  Rc8 {[%clk 0:02:24]} 15. Kf1 {[%clk 0:02:28]}  Nb4 {[%clk 0:02:18]} 16. Bb1 {[%clk 0:02:21]}  Ng6 {[%clk 0:02:08]} 17. Kg2 {[%clk 0:02:18]}  O-O {[%clk 0:02:07]} 18. a3 {[%clk 0:02:15]}  Nc6 {[%clk 0:02:06]} 19. h4 {[%clk 0:02:02]}  Na5 {[%clk 0:01:56]} 20. Ba2 {[%clk 0:01:48]}  gxh4 {[%clk 0:01:45]} 21. b4 {[%clk 0:01:40]}  Nc4 {[%clk 0:01:39]} 22. Bxc4 {[%clk 0:01:41]}  Rxc4 {[%clk 0:01:38]} 23. Bxh6 {[%clk 0:01:40]}  Bxh6 {[%clk 0:01:06]} 24. Qxh6 {[%clk 0:01:38]}  Rxd4 {[%clk 0:01:07]} 25. Rxh4 {[%clk 0:01:05]}  Rc8 {[%clk 0:00:40]} 26. Nxd4 {[%clk 0:00:29]}  Qxd4 {[%clk 0:00:40]} 27. Rah1 {[%clk 0:00:29]}  Rc2 {[%clk 0:00:28]} 28. Qh7+ {[%clk 0:00:16]}  Kf8 {[%clk 0:00:26]} 29. Qh6+ {[%clk 0:00:13]}  Ke8 {[%clk 0:00:23]} 30. Qg5 {[%clk 0:00:14]}  Qxf2+ {[%clk 0:00:20]} 31. Kh3 {[%clk 0:00:13]}  Qg2# {[%clk 0:00:21]} 0-1


[Site "https://www.chess.com"]

[Event "Titled Tuesday Blitz December 20 Late 2022"]
[White "Tang, Andrew"]
[Black "Bryakin, Mikhail"]
[WhiteFideId "2059630"]
[BlackFideId "4165314"]
[WhiteElo "2582"]
[BlackElo "2391"]
[Result "1/2-1/2"]
[Round "06"]
[TimeControl "180+1"]
[Date "2022.12.20"]
[WhiteClock "0:00:12"]
[BlackClock "0:00:03"]

1. d4 {[%clk 0:02:56]}  Nf6 {[%clk 0:02:51]} 2. c4 {[%clk 0:02:56]}  d6 {[%clk 0:02:47]} 3. Nc3 {[%clk 0:02:56]}  e5 {[%clk 0:02:45]} 4. Nf3 {[%clk 0:02:56]}  Nbd7 {[%clk 0:02:43]} 5. g3 {[%clk 0:02:56]}  c6 {[%clk 0:02:42]} 6. Bg2 {[%clk 0:02:56]}  Be7 {[%clk 0:02:42]} 7. O-O {[%clk 0:02:56]}  Qc7 {[%clk 0:02:43]} 8. b4 {[%clk 0:02:57]}  O-O {[%clk 0:02:40]} 9. a4 {[%clk 0:02:54]}  a5 {[%clk 0:02:32]} 10. b5 {[%clk 0:02:52]}  c5 {[%clk 0:02:26]} 11. dxe5 {[%clk 0:02:42]}  Nxe5 {[%clk 0:02:12]} 12. Nxe5 {[%clk 0:02:39]}  dxe5 {[%clk 0:02:13]} 13. Qc2 {[%clk 0:02:35]}  Be6 {[%clk 0:02:11]} 14. Nd5 {[%clk 0:02:32]}  Bxd5 {[%clk 0:02:07]} 15. cxd5 {[%clk 0:02:33]}  Rad8 {[%clk 0:02:04]} 16. e4 {[%clk 0:02:26]}  Ne8 {[%clk 0:01:59]} 17. Bb2 {[%clk 0:02:25]}  Bf6 {[%clk 0:01:52]} 18. Rae1 {[%clk 0:02:21]}  b6 {[%clk 0:01:51]} 19. f4 {[%clk 0:02:20]}  Qe7 {[%clk 0:01:51]} 20. Qc3 {[%clk 0:02:00]}  exf4 {[%clk 0:01:46]} 21. e5 {[%clk 0:02:00]}  Bg5 {[%clk 0:01:45]} 22. gxf4 {[%clk 0:02:00]}  Bh6 {[%clk 0:01:45]} 23. d6 {[%clk 0:01:53]}  Qd7 {[%clk 0:01:43]} 24. Rd1 {[%clk 0:01:25]}  Qg4 {[%clk 0:01:32]} 25. Qf3 {[%clk 0:01:18]}  Qxf3 {[%clk 0:01:24]} 26. Bxf3 {[%clk 0:01:19]}  Bxf4 {[%clk 0:01:24]} 27. Kg2 {[%clk 0:01:03]}  g5 {[%clk 0:01:22]} 28. h4 {[%clk 0:00:49]}  Ng7 {[%clk 0:01:13]} 29. Be4 {[%clk 0:00:33]}  h6 {[%clk 0:01:10]} 30. hxg5 {[%clk 0:00:33]}  Bxg5 {[%clk 0:01:09]} 31. Kf3 {[%clk 0:00:30]}  Ne6 {[%clk 0:01:09]} 32. Bd5 {[%clk 0:00:28]}  Kg7 {[%clk 0:00:58]} 33. Ke4 {[%clk 0:00:28]}  Rfe8 {[%clk 0:00:51]} 34. Bc4 {[%clk 0:00:24]}  Kg6 {[%clk 0:00:48]} 35. Rf3 {[%clk 0:00:18]}  Rd7 {[%clk 0:00:49]} 36. Rdf1 {[%clk 0:00:16]}  Red8 {[%clk 0:00:48]} 37. Kd5 {[%clk 0:00:12]}  Rc8 {[%clk 0:00:49]} 38. Bd3+ {[%clk 0:00:09]}  Kg7 {[%clk 0:00:49]} 39. Bc4 {[%clk 0:00:07]}  Kg6 {[%clk 0:00:49]} 40. Bc3 {[%clk 0:00:07]}  h5 {[%clk 0:00:40]} 41. Bd3+ {[%clk 0:00:07]}  Kg7 {[%clk 0:00:39]} 42. Bc4 {[%clk 0:00:08]}  Kg6 {[%clk 0:00:39]} 43. Rf5 {[%clk 0:00:08]}  h4 {[%clk 0:00:36]} 44. Ke4 {[%clk 0:00:07]}  Rh8 {[%clk 0:00:30]} 45. Bd3 {[%clk 0:00:06]}  h3 {[%clk 0:00:29]} 46. Rh1 {[%clk 0:00:05]}  Kg7 {[%clk 0:00:22]} 47. Rf3 {[%clk 0:00:05]}  h2 {[%clk 0:00:18]} 48. Rg3 {[%clk 0:00:04]}  Rh4+ {[%clk 0:00:17]} 49. Kf3 {[%clk 0:00:04]}  Kh6 {[%clk 0:00:16]} 50. Rg4 {[%clk 0:00:03]}  Rh3+ {[%clk 0:00:16]} 51. Rg3 {[%clk 0:00:03]}  Rh4 {[%clk 0:00:15]} 52. Rg4 {[%clk 0:00:04]}  Rh3+ {[%clk 0:00:15]} 53. Ke4 {[%clk 0:00:03]}  Nf4 {[%clk 0:00:15]} 54. Bd2 {[%clk 0:00:02]}  Rxd3 {[%clk 0:00:13]} 55. Rxh2+ {[%clk 0:00:03]}  Kg6 {[%clk 0:00:13]} 56. Rxg5+ {[%clk 0:00:03]}  Kxg5 {[%clk 0:00:13]} 57. Bxf4+ {[%clk 0:00:04]}  Kg4 {[%clk 0:00:12]} 58. Kxd3 {[%clk 0:00:02]}  Kxf4 {[%clk 0:00:12]} 59. Re2 {[%clk 0:00:03]}  Kf5 {[%clk 0:00:11]} 60. Kc3 {[%clk 0:00:02]}  Ke6 {[%clk 0:00:09]} 61. Kc4 {[%clk 0:00:02]}  f6 {[%clk 0:00:08]} 62. exf6+ {[%clk 0:00:03]}  Kxd6 {[%clk 0:00:08]} 63. Rd2+ {[%clk 0:00:02]}  Ke6 {[%clk 0:00:09]} 64. Rxd7 {[%clk 0:00:03]}  Kxd7 {[%clk 0:00:09]} 65. Kd5 {[%clk 0:00:04]}  Ke8 {[%clk 0:00:09]} 66. Kc6 {[%clk 0:00:02]}  c4 {[%clk 0:00:09]} 67. Kxb6 {[%clk 0:00:03]}  c3 {[%clk 0:00:10]} 68. Ka7 {[%clk 0:00:04]}  c2 {[%clk 0:00:11]} 69. b6 {[%clk 0:00:05]}  c1=Q {[%clk 0:00:11]} 70. b7 {[%clk 0:00:06]}  Qc5+ {[%clk 0:00:11]} 71. Ka8 {[%clk 0:00:06]}  Qc6 {[%clk 0:00:12]} 72. Ka7 {[%clk 0:00:07]}  Qc7 {[%clk 0:00:10]} 73. Ka8 {[%clk 0:00:07]}  Qc6 {[%clk 0:00:10]} 74. Ka7 {[%clk 0:00:08]}  Qc5+ {[%clk 0:00:10]} 75. Ka8 {[%clk 0:00:08]}  Qd5 {[%clk 0:00:10]} 76. Ka7 {[%clk 0:00:08]}  Qd4+ {[%clk 0:00:11]} 77. Ka8 {[%clk 0:00:09]}  Qe4 {[%clk 0:00:08]} 78. Ka7 {[%clk 0:00:09]}  Qe3+ {[%clk 0:00:08]} 79. Ka8 {[%clk 0:00:10]}  Qf3 {[%clk 0:00:08]} 80. Ka7 {[%clk 0:00:10]}  Qf2+ {[%clk 0:00:07]} 81. Ka8 {[%clk 0:00:10]}  Qf3 {[%clk 0:00:08]} 82. Ka7 {[%clk 0:00:10]}  Qe3+ {[%clk 0:00:08]} 83. Ka8 {[%clk 0:00:11]}  Qe4 {[%clk 0:00:08]} 84. Ka7 {[%clk 0:00:11]}  Qd4+ {[%clk 0:00:03]} 85. Ka8 {[%clk 0:00:12]}  Qd5 {[%clk 0:00:03]} 86. Ka7 {[%clk 0:00:12]}  Qc5+ {[%clk 0:00:03]} 1/2-1/2


[Site "https://www.chess.com"]

[Event "Titled Tuesday Blitz December 20 Late 2022"]
[White "Tatarinov, Dmitry"]
[Black "Crevatin, Leo"]
[WhiteFideId "24160067"]
[BlackFideId "1726307"]
[WhiteElo "2326"]
[BlackElo "2190"]
[Result "1/2-1/2"]
[Round "06"]
[TimeControl "180+1"]
[Date "2022.12.21"]
[WhiteClock "0:00:53"]
[BlackClock "0:00:32"]

1. Nf3 {[%clk 0:03:00]}  Nf6 {[%clk 0:02:58]} 2. g3 {[%clk 0:03:01]}  d5 {[%clk 0:02:57]} 3. Bg2 {[%clk 0:02:59]}  c6 {[%clk 0:02:55]} 4. c4 {[%clk 0:02:59]}  Bg4 {[%clk 0:02:48]} 5. O-O {[%clk 0:02:54]}  e6 {[%clk 0:02:48]} 6. Qb3 {[%clk 0:02:52]}  Qb6 {[%clk 0:02:47]} 7. d3 {[%clk 0:02:53]}  Qxb3 {[%clk 0:02:43]} 8. axb3 {[%clk 0:02:53]}  Nbd7 {[%clk 0:02:43]} 9. Be3 {[%clk 0:02:51]}  a6 {[%clk 0:02:42]} 10. Nc3 {[%clk 0:02:49]}  Bd6 {[%clk 0:02:37]} 11. Rfe1 {[%clk 0:02:44]}  h6 {[%clk 0:02:35]} 12. Na4 {[%clk 0:02:38]}  O-O {[%clk 0:02:34]} 13. h3 {[%clk 0:02:33]}  Bf5 {[%clk 0:02:32]} 14. Bd4 {[%clk 0:02:28]}  Rfd8 {[%clk 0:02:30]} 15. Nb6 {[%clk 0:02:26]}  Nxb6 {[%clk 0:02:29]} 16. Bxb6 {[%clk 0:02:27]}  Re8 {[%clk 0:02:30]} 17. Nd4 {[%clk 0:02:27]}  Bg6 {[%clk 0:02:29]} 18. e4 {[%clk 0:02:27]}  dxe4 {[%clk 0:02:27]} 19. dxe4 {[%clk 0:02:28]}  Nd7 {[%clk 0:02:25]} 20. Ba5 {[%clk 0:02:25]}  Bc5 {[%clk 0:02:24]} 21. Rad1 {[%clk 0:02:23]}  Bb6 {[%clk 0:02:02]} 22. Bc3 {[%clk 0:02:19]}  Nc5 {[%clk 0:01:59]} 23. b4 {[%clk 0:02:16]}  Na4 {[%clk 0:01:58]} 24. c5 {[%clk 0:02:15]}  Nxc3 {[%clk 0:01:50]} 25. bxc3 {[%clk 0:02:16]}  Bc7 {[%clk 0:01:49]} 26. e5 {[%clk 0:02:15]}  Red8 {[%clk 0:01:46]} 27. f4 {[%clk 0:02:13]}  Rd7 {[%clk 0:01:35]} 28. Nxc6 {[%clk 0:02:03]}  Rxd1 {[%clk 0:01:34]} 29. Ne7+ {[%clk 0:02:03]}  Kf8 {[%clk 0:01:31]} 30. Nxg6+ {[%clk 0:02:03]}  fxg6 {[%clk 0:01:32]} 31. Rxd1 {[%clk 0:02:03]}  a5 {[%clk 0:01:12]} 32. b5 {[%clk 0:02:01]}  a4 {[%clk 0:01:11]} 33. b6 {[%clk 0:02:01]}  Bd8 {[%clk 0:01:10]} 34. Bxb7 {[%clk 0:02:02]}  Rb8 {[%clk 0:01:11]} 35. Be4 {[%clk 0:01:49]}  Be7 {[%clk 0:01:11]} 36. b7 {[%clk 0:01:42]}  Bxc5+ {[%clk 0:01:10]} 37. Kf1 {[%clk 0:01:42]}  a3 {[%clk 0:01:05]} 38. Ke2 {[%clk 0:01:43]}  Ke7 {[%clk 0:01:03]} 39. Rd2 {[%clk 0:01:41]}  Ba7 {[%clk 0:00:59]} 40. Kd1 {[%clk 0:01:39]}  Rd8 {[%clk 0:00:57]} 41. Rxd8 {[%clk 0:01:32]}  Kxd8 {[%clk 0:00:58]} 42. Kc2 {[%clk 0:01:32]}  Kc7 {[%clk 0:00:56]} 43. Bxg6 {[%clk 0:01:26]}  Kxb7 {[%clk 0:00:51]} 44. Bf7 {[%clk 0:01:24]}  Bf2 {[%clk 0:00:52]} 45. g4 {[%clk 0:01:19]}  Bg3 {[%clk 0:00:52]} 46. Bxe6 {[%clk 0:01:19]}  Bxf4 {[%clk 0:00:51]} 47. Bd5+ {[%clk 0:01:19]}  Kc7 {[%clk 0:00:50]} 48. e6 {[%clk 0:01:18]}  Bd6 {[%clk 0:00:49]} 49. Ba2 {[%clk 0:01:18]}  g6 {[%clk 0:00:39]} 50. Kd3 {[%clk 0:01:18]}  h5 {[%clk 0:00:40]} 51. gxh5 {[%clk 0:01:13]}  gxh5 {[%clk 0:00:39]} 52. Ke4 {[%clk 0:01:13]}  Be7 {[%clk 0:00:39]} 53. Kd5 {[%clk 0:01:11]}  h4 {[%clk 0:00:37]} 54. c4 {[%clk 0:01:10]}  Kb6 {[%clk 0:00:37]} 55. Ke5 {[%clk 0:01:10]}  Kc5 {[%clk 0:00:35]} 56. Kf5 {[%clk 0:01:09]}  Kd6 {[%clk 0:00:35]} 57. Bb3 {[%clk 0:01:06]}  Bd8 {[%clk 0:00:34]} 58. Ba2 {[%clk 0:00:54]}  Be7 {[%clk 0:00:33]} 59. Bb1 {[%clk 0:00:55]}  Bd8 {[%clk 0:00:32]} 60. c5+ {[%clk 0:00:50]}  Kxc5 {[%clk 0:00:31]} 61. Kg6 {[%clk 0:00:51]}  Kd6 {[%clk 0:00:29]} 62. Kf7 {[%clk 0:00:52]}  Bg5 {[%clk 0:00:29]} 63. Ba2 {[%clk 0:00:52]}  Be7 {[%clk 0:00:30]} 64. Bb3 {[%clk 0:00:51]}  Bg5 {[%clk 0:00:30]} 65. Ba2 {[%clk 0:00:52]}  Be7 {[%clk 0:00:31]} 66. Kg6 {[%clk 0:00:52]}  Bd8 {[%clk 0:00:31]} 67. Kf7 {[%clk 0:00:53]}  Be7 {[%clk 0:00:32]} 1/2-1/2


[Site "https://www.chess.com"]

[Event "Titled Tuesday Blitz December 20 Late 2022"]
[White "Tologon tegin, Semetei"]
[Black "Movahed, Sina"]
[WhiteFideId "13800574"]
[BlackFideId "42520835"]
[WhiteElo "2571"]
[BlackElo "2778"]
[Result "0-1"]
[Round "06"]
[TimeControl "180+1"]
[Date "2022.12.21"]
[WhiteClock "0:00:01"]
[BlackClock "0:00:14"]

1. e4 {[%clk 0:02:30]}  c5 {[%clk 0:02:59]} 2. Nf3 {[%clk 0:02:29]}  d6 {[%clk 0:03:00]} 3. d4 {[%clk 0:02:30]}  cxd4 {[%clk 0:03:00]} 4. Nxd4 {[%clk 0:02:31]}  Nf6 {[%clk 0:03:01]} 5. Nc3 {[%clk 0:02:31]}  g6 {[%clk 0:03:01]} 6. Be3 {[%clk 0:02:31]}  a6 {[%clk 0:03:01]} 7. f3 {[%clk 0:02:23]}  h5 {[%clk 0:02:59]} 8. Qd2 {[%clk 0:02:21]}  Nbd7 {[%clk 0:02:59]} 9. h3 {[%clk 0:02:11]}  b5 {[%clk 0:02:39]} 10. a4 {[%clk 0:02:06]}  bxa4 {[%clk 0:02:32]} 11. Rxa4 {[%clk 0:01:58]}  Bg7 {[%clk 0:02:31]} 12. Nc6 {[%clk 0:01:37]}  Qc7 {[%clk 0:02:29]} 13. Rc4 {[%clk 0:01:37]}  Nb6 {[%clk 0:02:21]} 14. Rb4 {[%clk 0:01:30]}  Qxc6 {[%clk 0:01:42]} 15. Rxb6 {[%clk 0:01:29]}  Qc7 {[%clk 0:01:43]} 16. Be2 {[%clk 0:01:24]}  O-O {[%clk 0:01:42]} 17. O-O {[%clk 0:01:24]}  Be6 {[%clk 0:01:34]} 18. Ra1 {[%clk 0:01:23]}  Rfb8 {[%clk 0:01:30]} 19. Rxb8+ {[%clk 0:01:14]}  Rxb8 {[%clk 0:01:31]} 20. Qc1 {[%clk 0:01:05]}  Bc4 {[%clk 0:01:14]} 21. Bxc4 {[%clk 0:01:00]}  Qxc4 {[%clk 0:01:15]} 22. Ra4 {[%clk 0:00:55]}  Rb4 {[%clk 0:01:14]} 23. Ra3 {[%clk 0:00:49]}  e6 {[%clk 0:01:06]} 24. Qf1 {[%clk 0:00:37]}  Qxf1+ {[%clk 0:01:05]} 25. Kxf1 {[%clk 0:00:38]}  Rxb2 {[%clk 0:01:05]} 26. Rxa6 {[%clk 0:00:37]}  Rxc2 {[%clk 0:01:05]} 27. Nb5 {[%clk 0:00:37]}  d5 {[%clk 0:01:05]} 28. Ra8+ {[%clk 0:00:36]}  Kh7 {[%clk 0:01:04]} 29. Nd6 {[%clk 0:00:37]}  Rc7 {[%clk 0:00:40]} 30. e5 {[%clk 0:00:34]}  Ng8 {[%clk 0:00:39]} 31. f4 {[%clk 0:00:31]}  Nh6 {[%clk 0:00:36]} 32. Bb6 {[%clk 0:00:26]}  Rd7 {[%clk 0:00:34]} 33. Rd8 {[%clk 0:00:13]}  Rxd8 {[%clk 0:00:31]} 34. Bxd8 {[%clk 0:00:14]}  Kg8 {[%clk 0:00:30]} 35. Ke2 {[%clk 0:00:13]}  Nf5 {[%clk 0:00:31]} 36. Kd3 {[%clk 0:00:12]}  Kf8 {[%clk 0:00:23]} 37. g4 {[%clk 0:00:10]}  hxg4 {[%clk 0:00:20]} 38. hxg4 {[%clk 0:00:11]}  Nxd6 {[%clk 0:00:18]} 39. exd6 {[%clk 0:00:12]}  Ke8 {[%clk 0:00:17]} 40. Bc7 {[%clk 0:00:04]}  Kd7 {[%clk 0:00:17]} 41. f5 {[%clk 0:00:02]}  exf5 {[%clk 0:00:16]} 42. gxf5 {[%clk 0:00:03]}  gxf5 {[%clk 0:00:17]} 43. Ke3 {[%clk 0:00:02]}  Be5 {[%clk 0:00:17]} 44. Bb6 {[%clk 0:00:03]}  Kxd6 {[%clk 0:00:16]} 45. Ba7 {[%clk 0:00:02]}  Kc6 {[%clk 0:00:17]} 46. Kf3 {[%clk 0:00:02]}  Kb5 {[%clk 0:00:17]} 47. Bf2 {[%clk 0:00:01]}  f6 {[%clk 0:00:17]} 48. Bh4 {[%clk 0:00:02]}  Kc4 {[%clk 0:00:17]} 49. Be1 {[%clk 0:00:03]}  d4 {[%clk 0:00:17]} 50. Ba5 {[%clk 0:00:03]}  d3 {[%clk 0:00:18]} 51. Bd2 {[%clk 0:00:03]}  f4 {[%clk 0:00:15]} 52. Kf2 {[%clk 0:00:02]}  f5 {[%clk 0:00:14]} 53. Kf3 {[%clk 0:00:02]}  Kb3 {[%clk 0:00:15]} 54. Ba5 {[%clk 0:00:01]}  Kc2 {[%clk 0:00:15]} 55. Bb6 {[%clk 0:00:02]}  d2 {[%clk 0:00:14]} 56. Bd4 {[%clk 0:00:01]}  d1=Q+ {[%clk 0:00:14]} 0-1


[Site "https://www.chess.com"]

[Event "Titled Tuesday Blitz December 20 Late 2022"]
[White "Toncheva, Nadya"]
[Black "Leitao, Rafael"]
[WhiteFideId "2924056"]
[BlackFideId "2101246"]
[WhiteElo "2101"]
[BlackElo "2609"]
[Result "1-0"]
[Round "06"]
[TimeControl "180+1"]
[Date "2022.12.21"]
[WhiteClock "0:00:18"]
[BlackClock "0:00:23"]

1. d4 {[%clk 0:03:00]}  Nf6 {[%clk 0:02:56]} 2. c4 {[%clk 0:03:01]}  e6 {[%clk 0:02:55]} 3. Nc3 {[%clk 0:03:01]}  Bb4 {[%clk 0:02:55]} 4. e3 {[%clk 0:03:02]}  O-O {[%clk 0:02:54]} 5. Ne2 {[%clk 0:02:57]}  d5 {[%clk 0:02:54]} 6. a3 {[%clk 0:02:57]}  Bd6 {[%clk 0:02:51]} 7. c5 {[%clk 0:02:57]}  Be7 {[%clk 0:02:51]} 8. Nf4 {[%clk 0:02:51]}  c6 {[%clk 0:02:45]} 9. Bd3 {[%clk 0:02:50]}  Nbd7 {[%clk 0:02:42]} 10. O-O {[%clk 0:02:48]}  e5 {[%clk 0:02:42]} 11. Nfe2 {[%clk 0:02:39]}  Re8 {[%clk 0:02:21]} 12. b4 {[%clk 0:02:33]}  e4 {[%clk 0:02:16]} 13. Bc2 {[%clk 0:02:33]}  Nf8 {[%clk 0:02:17]} 14. f3 {[%clk 0:02:29]}  exf3 {[%clk 0:02:14]} 15. Rxf3 {[%clk 0:02:20]}  Ng6 {[%clk 0:02:11]} 16. e4 {[%clk 0:02:11]}  dxe4 {[%clk 0:02:03]} 17. Nxe4 {[%clk 0:02:11]}  Nxe4 {[%clk 0:01:59]} 18. Bxe4 {[%clk 0:02:11]}  Bf6 {[%clk 0:01:59]} 19. Bxg6 {[%clk 0:02:05]}  hxg6 {[%clk 0:01:58]} 20. Bb2 {[%clk 0:01:48]}  Bg4 {[%clk 0:01:57]} 21. Rf2 {[%clk 0:01:48]}  Qd5 {[%clk 0:01:18]} 22. h3 {[%clk 0:01:44]}  Bxe2 {[%clk 0:01:09]} 23. Rxe2 {[%clk 0:01:44]}  Rxe2 {[%clk 0:00:59]} 24. Qxe2 {[%clk 0:01:45]}  Bxd4+ {[%clk 0:00:59]} 25. Kh1 {[%clk 0:01:43]}  Bxb2 {[%clk 0:01:00]} 26. Qxb2 {[%clk 0:01:43]}  Re8 {[%clk 0:01:00]} 27. Rf1 {[%clk 0:01:34]}  Re3 {[%clk 0:00:57]} 28. Kg1 {[%clk 0:01:27]}  Qd3 {[%clk 0:00:49]} 29. Qf2 {[%clk 0:01:26]}  Qxa3 {[%clk 0:00:37]} 30. Qxf7+ {[%clk 0:01:24]}  Kh7 {[%clk 0:00:36]} 31. Rf4 {[%clk 0:01:03]}  Qa1+ {[%clk 0:00:31]} 32. Rf1 {[%clk 0:00:27]}  Re1 {[%clk 0:00:29]} 33. Rxe1 {[%clk 0:00:21]}  Qxe1+ {[%clk 0:00:28]} 34. Kh2 {[%clk 0:00:22]}  Qxb4 {[%clk 0:00:28]} 35. Qe7 {[%clk 0:00:21]}  a5 {[%clk 0:00:26]} 36. h4 {[%clk 0:00:19]}  a4 {[%clk 0:00:25]} 37. h5 {[%clk 0:00:19]}  Qh4+ {[%clk 0:00:23]} 38. Qxh4 {[%clk 0:00:18]} 1-0


[Site "https://www.chess.com"]